Workbook

Sheet Calculations (hidden)
B1: Bandwidth
B2: Protocol | C2: Bandwidth (Gbps) | D2: Rate Multiplier | F2: Bitns (NS) | G2: Bitns (HS) | I2: Sensor Width | J2: 9344
B3: CXP3 | C3: 2.5 | D3: 1 | F3: 8 | G3: 8 | I3: Sensor Height | J3: 7000
B4: CXP6 | C4: 4.9 | D4: 2 | F4: 10 | G4: 10
B5: CXP12 | C5: 9.8 | D5: 4 | F5: 12 | I5: Modes
I6: High Speed
B7: Overhead (%) | C7: 5 | I7: Normal Speed
B10: Max Frame Rate Calculation
B11: Parameter | D11: Value | E11: Remark
B12: Bandwidth | D12: =C3*(100-C7)/100 -> 2.375
B13: # of links | D13: =UserInterface!D22 -> 1
B14: Rate Multiplier | D14: =VLOOKUP(UserInterface!D26,Calculations!B2:D5,3,FALSE) -> 4
B15: Total Bandwidth | D15: =D12*D13*D14*1000000000 -> 9500000000
B16: CLK_PIX (Hz) | D16: =IF(UserInterface!D21="Normal Speed",80000000,90000000) -> 90000000 | E16: Sensor Clock - Pre defined
B17: CLK_PIX Period (s) | D17: =1/D16 -> 1.111111111e-08 | E17: TCLK_PIX
B18: LVDS Lines | D18: =IF(UserInterface!D21="Normal Speed",28,56) -> 56 | E18: (56,28) HS/NS
B19: Lines | D19: =UserInterface!D23 -> 7000 | E19: NROW
B20: Columns | D20: =UserInterface!D24 -> 9344
B21: Readout Bits (8,10,12) | D21: =UserInterface!D25 -> 8 | E21: NS supports all , HS only 10 and 12
B22: Line Size (Bits) | D22: =D20*D21 -> 74752
B23: Line Rate (Hz) | D23: =D15/D22 -> 127086.9007
B24: Shortes sensor line time (s) | D24: =1/D23 -> 7.868631579e-06
B25: Shortest line time (clocks) | D25: =D24*D18/(56*D17) -> 708.1768421
B26: Shortest sensor line times | D26: 180
B27: LINE_U_LENGTH register | D27: =MAX(D26,ROUNDUP(D25,0)) -> 709
B28: Actual line time | D28: =D27*56*D17/D18 -> 7.877777778e-06
B29: TFOT | D29: =6*D27*D17 -> 4.726666667e-05
B30: TRD | D30: =(D19+10)*D28 -> 0.05522322222
B31: TFRM (Min) | D31: =D29+D30 -> 0.05527048889
B32: Max FPS | D32: =1/D31 -> 18.09283797

Sheet UserInterface (hidden)
B4: IRON
B7: Frame-Rate Calculator
B15: This document is provided as a simple and convinent tool for our customers to use. Please feel free to contact our support team with any questions - we will be happy to provide assitance and support! For more information, products and the latest updates visit our website, www.KayaInstruments.com
B19: Iron 3265
C20: =Calculations!J3&" (V) x "&Calculations!J2&" (H)" -> 7000 (V) x 9344 (H)
B21: Mode Selection | D21: High Speed
B22: Number of Links | D22: 1
B23: Number of Desired lines (V) | D23: 7000
B24: Desired Number of Horizontal Pixels (H) | D24: 9344
B25: Bitness Selection: | D25: 8
B26: Interface Selection: | D26: CXP12
B27: MAX Frame Rate: | D27: =ROUND(Calculations!D32,1) -> 18.1

Sheet Start
B18: You must enable macros in order to use this calculator!
